Company(T),Trans.date,Supplier Name(T),TransNo,Amount,Irrecoverable VAT,Service/Dept(T),Procurement Category,Account code,Account code(T),Narrative/Purpose of Spend,Govt Procurement Card
East Cambridgeshire District Council,16/01/2017,Rail Travel,5105818,341,,National Practitioner Support Programme,Employees,1051,Staff Travelling,Redacted Personal Data,Y
East Cambridgeshire District Council,16/01/2017,La Iguanas and Just Eat,5105818,76.92,,National Practitioner Support Programme,Employees,1052,Staff Subsistence,Redacted Personal Data,Y
East Cambridgeshire District Council,16/01/2017,Propertology,5105818,194.5,,National Practitioner Support Programme,Employees,1052,Staff Subsistence,Redacted Personal Data,Y
East Cambridgeshire District Council,16/01/2017,Pret-a-Mange,5105818,8.55,,National Practitioner Support Programme,Employees,1052,Staff Subsistence,Redacted Personal Data,Y
East Cambridgeshire District Council,11/01/2017,The Knowledge Academy Ltd,637751,"1,700.00",,Performance Management,Employees,1135,Training - External,Lean Six Sigma - 6/3/17-10/3/17 - Redacted Personal Data,
East Cambridgeshire District Council,30/01/2017,Idox Software Limited,637898,"1,875.00",,Training,Employees,1135,Training - External,IDOX EDRMS training,
East Cambridgeshire District Council,19/01/2017,University of Birmingham,637814,650,,Training,Employees,1136,Qualifications,Redacted Personal Data=J7- Food Standards Module April-May 2017,
East Cambridgeshire District Council,16/01/2017,CIH,5105818,296,,National Practitioner Support Programme,Employees,1160,Professional Subscriptions,Membership,Y
East Cambridgeshire District Council,13/01/2017,Aquarius Plumbing,637840,545.7,,Portley Hill Littleport Depot,Premises,2020,Premises Contract Work,"Portley Hill fit work top,sink & plumb in dishwasher",
East Cambridgeshire District Council,09/01/2017,NB Carpentry Ltd,637728,721.75,,The Grange,Premises,2030,Premises Asset Management,Replacement fire door,
East Cambridgeshire District Council,24/01/2017,C D Clowe,637834,879.37,,Jubilee Gardens,Premises,2030,Premises Asset Management,upgrade LED corn lamps,
East Cambridgeshire District Council,26/01/2017,A C Environmental Services (UK) Ltd,637863,"1,750.00",,The Grange,Premises,2030,Premises Asset Management,Management Asbestos Survey,
East Cambridgeshire District Council,06/01/2017,E.ON UK plc,1136108,"1,234.04",,Parking Of Vehicles,Premises,2110,Electricity,011397609520 St/Lighting car parks,
East Cambridgeshire District Council,08/01/2017,Total Gas and Power Limited,1136116,"1,034.42",,E Space North,Premises,2110,Electricity,3004663222 ESpace North,
East Cambridgeshire District Council,19/01/2017,ESPO,1136212,530.23,,The Grange,Premises,2120,Gas,M040A0173612A6 The Grange,
East Cambridgeshire District Council,23/12/2016,City of Ely Council,637670,604,,Civic Relations,Premises,2211,Rent Premises/Room Hire,Hire & Catering 3/2/17,
East Cambridgeshire District Council,23/01/2017,Rigby Taylor Limited,637829,"1,161.00",,Parks And Open Spaces,Premises,2810,Grounds Materials,,
East Cambridgeshire District Council,19/01/2017,The Street Nameplate Co,637883,800.5,,Street Naming & Numbering,Premises,2811,Street Signs,,
East Cambridgeshire District Council,05/01/2017,Metro Rod,637718,550,,Parking Of Vehicles,Premises,2820,Grounds Contract Work,Remove Waste from interceptor at Car Park Broad Street,
East Cambridgeshire District Council,23/01/2017,Environment Agency,637837,885,,Travellers Site - Wentworth,Premises,2841,Licences,Wentworth TS,
East Cambridgeshire District Council,04/01/2017,Be Fuelcards,1136082,599.17,,Sanctuary Grasscutting,Transport,3021,Derv,Fuelcards December 2016,
East Cambridgeshire District Council,28/12/2016,Commercial Services Trading Ltd,1136070,"3,754.82",280.32,Leased Cars,Transport,3051,Purchase Vehicles,EX65NPJ 11/12/16-10/12/17,
East Cambridgeshire District Council,27/01/2017,Mil-Ken Travel Ltd,637878,620,,Economic Development Admin,Transport,3210,Hired Vehicles & Plant,Soham Village College - Ely Cathedral,
East Cambridgeshire District Council,27/01/2017,Mil-Ken Travel Ltd,637879,720,,Economic Development Admin,Transport,3210,Hired Vehicles & Plant,Bottisham Village College - Ely Cathedral,
East Cambridgeshire District Council,23/01/2017,Rigby Taylor Limited,637829,675,,Parks And Open Spaces,Supplies & Services,4010,Equipment - Purchases,,
East Cambridgeshire District Council,16/01/2017,Jessops,5105818,57.5,,Home Improvement Agency Services,Supplies & Services,4010,Equipment - Purchases,Sony Camera ,Y
East Cambridgeshire District Council,16/01/2017,John Lewis plc,5105818,70.83,,National Practitioner Support Programme,Supplies & Services,4010,Equipment - Purchases,Redacted Personal Data,Y
East Cambridgeshire District Council,26/01/2017,Konica Minolta Business Solutions East Ltd,1136314,"3,083.32",,Printing/Copying,Supplies & Services,4013,Equipment - Hire,Period 1/11/16-31/1/17,
East Cambridgeshire District Council,28/10/2016,Cambridgeshire County Council,637764,"30,000.00",,Parks And Open Spaces,Supplies & Services,4015,S106 Spend,Junction Improvements - West Fen Road Ely,
East Cambridgeshire District Council,13/01/2017,Park Retail Ltd t/as Love2Reward,637772,"1,029.00",,Recycling Reward Scheme,Supplies & Services,4030,Materials - Purchase,Love2Shop Vouchers,
East Cambridgeshire District Council,16/01/2017,Bunzl  Cleaning & Hygiene Supplies,637778,"1,026.30",,Cleaning,Supplies & Services,4030,Materials - Purchase,,
East Cambridgeshire District Council,23/01/2017,Rigby Taylor Limited,637838,"1,170.00",,Parks And Open Spaces,Supplies & Services,4030,Materials - Purchase,,
East Cambridgeshire District Council,16/01/2017,Blinds2go,5105818,134.66,,The Grange,Supplies & Services,4030,Materials - Purchase,Blinds ,Y
East Cambridgeshire District Council,23/12/2016,City of Ely Council,637670,807,,Civic Relations,Supplies & Services,4110,Food /Refreshments Purchased,Hire & Catering 3/2/17,
East Cambridgeshire District Council,10/01/2017,Corporate Mailing Solutions,637729,654.65,,Registration of Electors,Supplies & Services,4310,Printing & Stationery,ITR Additional final reminders,
East Cambridgeshire District Council,16/01/2017,Colourbyte,5105818,123.95,,Printing/Copying,Supplies & Services,4310,Printing & Stationery, Banner Material ,Y
East Cambridgeshire District Council,16/01/2017,Get Canvas,5105818,14.99,,Printing/Copying,Supplies & Services,4310,Printing & Stationery,Eyelets,Y
East Cambridgeshire District Council,06/01/2017,CIPFA Business Ltd,637712,915,,Finance - Accountancy,Supplies & Services,4320,Publications & books,Code of Practice on Local Government Accounting,
East Cambridgeshire District Council,10/01/2017,Thomson Reuters t/as Sweet & Maxwell Ltd,637723,"2,144.00",,Legal,Supplies & Services,4320,Publications & books,Ency Env Health/ Ency Local Govmt law,
East Cambridgeshire District Council,29/12/2016,Matchtech Group Ltd,637678,"1,554.00",,Planning,Supplies & Services,4401,Agency Workers,Redacted Personal Data- Week Commencing 19/12/16,
East Cambridgeshire District Council,03/01/2017,The Oyster Partnership,637697,781.25,,Homelessness,Supplies & Services,4401,Agency Workers,Redacted Personal Data - Week Commencing 19/12/16,
East Cambridgeshire District Council,19/12/2016,Matchtech Group Ltd,637749,"1,764.00",,Planning,Supplies & Services,4401,Agency Workers,Redacted Personal Data- Week Commencing 05/12/16,
East Cambridgeshire District Council,16/01/2017,Matchtech Group Ltd,637789,"1,554.00",,Planning,Supplies & Services,4401,Agency Workers,Redacted Personal Data- Week Commencing 02/01/17,
East Cambridgeshire District Council,19/01/2017,The Oyster Partnership,637813,712.5,,Homelessness,Supplies & Services,4401,Agency Workers,Redacted Personal Data- Week Commecing 02/01/17,
East Cambridgeshire District Council,20/01/2017,Matchtech Group Ltd,637822,"1,554.00",,Planning,Supplies & Services,4401,Agency Workers,Redacted Personal Data - Week Commencing 09/01/17,
East Cambridgeshire District Council,20/01/2017,Matchtech Group Ltd,637823,936.25,,Planning,Supplies & Services,4401,Agency Workers,Redacted Personal Data - Week Commencing 09/01/17,
East Cambridgeshire District Council,27/01/2017,Matchtech Group Ltd,637875,"1,638.00",,Planning,Supplies & Services,4401,Agency Workers,Redacted Personal Data - Week Commencing 16/1/17,
East Cambridgeshire District Council,27/01/2017,Matchtech Group Ltd,637876,"1,277.85",,Planning,Supplies & Services,4401,Agency Workers,Redacted Personal Data - Week Commencing 16/1/17,
East Cambridgeshire District Council,13/01/2017,G4S Cash Solutions (UK) Ltd,1136186,822.99,,Angel Drove Commuters Car Park,Supplies & Services,4412,Courier Service,Contract 3342504 1/2/17-28/2/17,
East Cambridgeshire District Council,18/01/2017,Cambridgeshire County Council,1136202,"15,822.00",,Land Charges Admin,Supplies & Services,4420,Inquiries,Highways Search Info 1/101/6-31/12/16,
East Cambridgeshire District Council,23/12/2016,David Clark & Co Ltd,637688,"1,012.50",,Homelessness,Supplies & Services,4421,Sanctuary Homelessness/Rent Deposit,Redacted Personal Data,
East Cambridgeshire District Council,10/01/2017,Peter Michael Estate Agents Ltd,637735,"1,550.00",,Homelessness,Supplies & Services,4421,Sanctuary Homelessness/Rent Deposit,Redacted Personal Data,
East Cambridgeshire District Council,12/01/2017,Sanctuary Housing Association,1136164,"5,881.15",,Homelessness,Supplies & Services,4423,Hostel Charges/Voids,Void Charges for Redacted Personal Data- Period Oct-Dec16,
East Cambridgeshire District Council,12/01/2017,Sanctuary Housing Association,1136165,"1,348.44",,Homelessness,Supplies & Services,4423,Hostel Charges/Voids,Void Charges for Redacted Personal Data - Period OCt-Dec 2016,
East Cambridgeshire District Council,18/01/2017,Wood Green Animal Shelters,1136200,633.32,,Dog Warden Scheme,Supplies & Services,4424,Kennelling,Stray charges for dec 16 & Jan 17,
East Cambridgeshire District Council,10/01/2017,C E Fuller & Co,637730,"1,638.00",,Env Health - Admin,Supplies & Services,4429,Undertakers Fees,Funeral of Redacted Personal Data 15/12/16,
East Cambridgeshire District Council,11/01/2017,Elysian Associates,637754,"3,550.00",,Leisure Centre,Supplies & Services,4430,Consultants Fees,Leisure Project,
East Cambridgeshire District Council,23/12/2016,FleetSAVE Limited,637757,590.95,,Refuse Collection,Supplies & Services,4430,Consultants Fees,Review of Fleet Arrangement,
East Cambridgeshire District Council,20/01/2017,Govia Thameslink Railway (GTR),637819,"1,705.60",,Littleport Station Car Park,Supplies & Services,4430,Consultants Fees,Management Fee - Littleport Station Car Park 1/10/16-31/3/17,
East Cambridgeshire District Council,20/01/2017,Govia Thameslink Railway (GTR),637820,"1,705.60",,Littleport Station Car Park,Supplies & Services,4430,Consultants Fees,Management Fee for Littleport Station Car Park 1/4/16-30/9/16,
East Cambridgeshire District Council,09/01/2017,East of England Local Government Association,637869,"1,295.90",,Corp.Man.Policy Research/Review,Supplies & Services,4430,Consultants Fees,Redacted Personal Data- Dec 2016,
East Cambridgeshire District Council,30/11/2016,Firmstep Ltd,637888,"2,875.00",,CRM/WEB,Supplies & Services,4430,Consultants Fees,2 days call off & ICT hand over,
East Cambridgeshire District Council,24/01/2017,Cambridgeshire County Council,637896,"1,500.00",,Internal Audit,Supplies & Services,4430,Consultants Fees,Internal Audit Report,
East Cambridgeshire District Council,27/01/2017,Foresight Consulting (UK) Ltd,637897,"8,826.00",,Transformation Programme,Supplies & Services,4430,Consultants Fees,Redacted Personal Data Technical Consultant,
East Cambridgeshire District Council,26/01/2017,Elys Removal Service,637866,641,,Homelessness,Supplies & Services,4440,Removal Expenses,Removal for Redacted Personal Data from Warboys to Soham,
East Cambridgeshire District Council,04/01/2017,Taylor Vinters LLP,637684,"2,500.00",,Parks And Open Spaces,Supplies & Services,4443,Solicitors Fees,Employment Advice,
East Cambridgeshire District Council,20/01/2017,SureCloud Limited,637825,"7,900.00",,Information Technology,Supplies & Services,4452,IT - Upgrade consultants,IT Health Check,
East Cambridgeshire District Council,25/01/2017,Idox Software Limited,637842,950,,Information Technology,Supplies & Services,4452,IT - Upgrade consultants,uniform upgrade out of hours,
East Cambridgeshire District Council,30/11/2016,Unit4 Business Software,637861,"2,700.00",,Information Technology,Supplies & Services,4452,IT - Upgrade consultants,Redacted Personal Data 17-18/10/16,
East Cambridgeshire District Council,24/01/2017,Idox Software Limited,637873,"2,000.00",,Information Technology,Supplies & Services,4452,IT - Upgrade consultants,TLC v9.0.4 Upgrade tp test and Live systems for VAT Configuration,
East Cambridgeshire District Council,24/01/2017,Idox Software Limited,637874,"3,000.00",,Information Technology,Supplies & Services,4452,IT - Upgrade consultants,IDOX Public Access upgrade,
East Cambridgeshire District Council,10/01/2017,Corporate Mailing Solutions,637729,507.68,,Registration of Electors,Supplies & Services,4510,Postage,ITR Additional final reminders,
East Cambridgeshire District Council,18/01/2017,Purchase Power,637804,"1,050.22",,E Space North,Supplies & Services,4510,Postage,Meter reset,
East Cambridgeshire District Council,16/01/2017,Pitney Bowes Limited,637805,"1,166.00",,E Space South,Supplies & Services,4510,Postage,DM110/DM160/DM220I,
East Cambridgeshire District Council,17/01/2017,Neopost Ltd,1136192,"3,000.00",,DMS,Supplies & Services,4510,Postage,Postage recredit 19/12/16-13/1/17,
East Cambridgeshire District Council,02/01/2017,Idox Software Limited,637675,543.6,,Registration of Electors,Supplies & Services,4520,Telephone,IVR Service for Annual Canvass 2016,
East Cambridgeshire District Council,04/01/2017,Ip-Xchange Ltd,1136087,"1,072.69",,E Space South,Supplies & Services,4520,Telephone,ESpace South,
East Cambridgeshire District Council,04/01/2017,Ip-Xchange Ltd,1136088,"1,972.14",,E Space North,Supplies & Services,4520,Telephone,ESpace North,
East Cambridgeshire District Council,12/01/2017,Virgin Media Payments Ltd - 743058701,1136170,"2,012.16",,The Grange,Supplies & Services,4520,Telephone,Account 743058701,
East Cambridgeshire District Council,12/01/2017,Virgin Media Payments Ltd - 743058701,1136171,"1,970.67",,The Grange,Supplies & Services,4520,Telephone,Account 743058701,
East Cambridgeshire District Council,09/01/2017,Virgin Media Payments - 923467,1136130,903.88,,Information Technology,Supplies & Services,4522,Contributions (IT Only CCN),Account 923467,
East Cambridgeshire District Council,17/01/2017,Mediacam,637808,"2,666.00",,Economic Development Admin,Supplies & Services,4540,Promotion Costs,Ely promotional film,
East Cambridgeshire District Council,31/01/2017,Cambridge Marketing Ltd,637890,"5,000.00",,Marketing & Grants,Supplies & Services,4540,Promotion Costs,Visit Ely Guide 2017,
East Cambridgeshire District Council,31/01/2017,Verve Digital Ltd,637892,500,,Marketing & Grants,Supplies & Services,4540,Promotion Costs,OCH website,
East Cambridgeshire District Council,31/12/2016,NU Network Products Ltd,637679,"4,375.00",,Information Technology,Supplies & Services,4550,IT Licences,Manager Professional Annual Subscription - Expires 30/12/17,
East Cambridgeshire District Council,28/11/2016,Plan Alpha Systems Ltd,637722,"12,750.00",,CRM/WEB,Supplies & Services,4550,IT Licences,Hosting of Drupal & Support,
East Cambridgeshire District Council,20/01/2017,Alternative Networks plc,637858,"3,015.00",,Information Technology,Supplies & Services,4550,IT Licences,Maintenance Charge 19/1/17-18/1/18,
East Cambridgeshire District Council,04/01/2017,Vodafone Ltd,1136092,"1,131.04",,Information Technology,Supplies & Services,4550,IT Licences,GSi Convergence Framework 1/10/16-31/12/16,
East Cambridgeshire District Council,16/01/2017,Amazon,5105818,77.48,,Information Technology,Supplies & Services,4551,Hardware Purchases/Maint,Transceiver ,Y
East Cambridgeshire District Council,16/01/2017,Amazon,5105818,6.05,,Information Technology,Supplies & Services,4551,Hardware Purchases/Maint,Cable ,Y
East Cambridgeshire District Council,16/01/2017,Amazon,5105818,35.75,,Information Technology,Supplies & Services,4551,Hardware Purchases/Maint,Netgear,Y
East Cambridgeshire District Council,19/12/2016,Manchester City Council,637596,"22,019.77",,National Practitioner Support Programme,Supplies & Services,4713,Grants - Contributions,Redacted Personal Data - August-Dec 2016,
East Cambridgeshire District Council,23/12/2016,Cambridgeshire & Peterborough Fire Authority,637686,"5,000.00",,Emergency Planning,Supplies & Services,4713,Grants - Contributions,CPLRF Contribution 2016/17,
East Cambridgeshire District Council,10/01/2017,We Three Club,637724,500,,Community Safety,Supplies & Services,4713,Grants - Contributions,Logo for Eyes & Ears,
East Cambridgeshire District Council,20/01/2017,The Royal Borough of Kensington & Chelsea Council,637824,"6,403.00",,National Practitioner Support Programme,Supplies & Services,4713,Grants - Contributions,Q3 Costs for DCLG Funded NPSS Post,
East Cambridgeshire District Council,31/01/2017,Ely Museum,637889,"3,790.00",,The Old Gaol House,Supplies & Services,4714,Grants - Ely Museum,4th quarterly instalment 16/17,
East Cambridgeshire District Council,27/01/2017,Socitm Ltd,637881,925,,Information Technology,Supplies & Services,4780,Subscriptions - General,Insight Service 2017,
East Cambridgeshire District Council,12/01/2017,Cabinet Office,1136159,"2,200.00",,Internal Audit,Supplies & Services,4780,Subscriptions - General,NFI National Exercise 2016/17,
East Cambridgeshire District Council,16/01/2017,IOG,5105818,140.87,,Parks And Open Spaces,Supplies & Services,4780,Subscriptions - General,Membership,Y
East Cambridgeshire District Council,16/01/2017,Google,5105818,6.6,,LATC,Supplies & Services,4780,Subscriptions - General,Googleapps ,Y
East Cambridgeshire District Council,16/01/2017,Survey Monkey,5105818,249.17,,Local Plan Preparation,Supplies & Services,4780,Subscriptions - General,Annual sub,Y
East Cambridgeshire District Council,13/01/2017,Dal Rod,637781,589,,Travellers Site - Earith Bridge,Supplies & Services,4910,Other Payments,Earith Bridge Travellers Site,
East Cambridgeshire District Council,12/01/2017,"Bob Smith Heating, Plumbing & Electrical Ltd",1136177,"2,896.16",,Home Improvement Agency Services,Supplies & Services,4938,Client Contribution,C & R - Inv 43616 PP - Redacted Personal Data,
East Cambridgeshire District Council,12/01/2017,Trevor Benton Construction Ltd,1136181,"8,957.25",,Home Improvement Agency Services,Supplies & Services,4938,Client Contribution,C & R - Inv0000005835 Redacted Personal Data,
East Cambridgeshire District Council,26/01/2017,Trevor Benton Construction Ltd,1136310,"1,740.71",,Home Improvement Agency Services,Supplies & Services,4938,Client Contribution,C & R - Inv 0000005832 - Redacted Personal Data,
East Cambridgeshire District Council,19/12/2016,AmeyCespa (East) Limited,1136103,"9,047.67",,Recycling,Third Party,5010,Contracted Services,The Grange,
East Cambridgeshire District Council,19/12/2016,AmeyCespa (East) Limited,1136104,"2,622.22",,Recycling,Third Party,5010,Contracted Services,The Grange,
East Cambridgeshire District Council,19/12/2016,AmeyCespa (East) Limited,1136105,"4,347.08",,Recycling,Third Party,5010,Contracted Services,The Grange,
East Cambridgeshire District Council,19/12/2016,AmeyCespa (East) Limited,1136106,"6,476.13",,Recycling,Third Party,5010,Contracted Services,The Grange,
East Cambridgeshire District Council,10/01/2017,SLM Ltd,1136139,"9,363.00",,Paradise Pool,Third Party,5010,Contracted Services,Management Fee Jan 2017,
East Cambridgeshire District Council,20/01/2017,Veolia ES (UK) Ltd,1136231,"1,224.68",,Bulk Waste,Third Party,5010,Contracted Services,Monthly Refuse & Recycling 1/12/16-31/12/16,
East Cambridgeshire District Council,20/01/2017,Veolia ES (UK) Ltd,1136231,"30,752.50",,Recycling,Third Party,5010,Contracted Services,Monthly Refuse & Recycling 1/12/16-31/12/16,
East Cambridgeshire District Council,20/01/2017,Veolia ES (UK) Ltd,1136231,"30,752.50",,Recycling Organic Waste,Third Party,5010,Contracted Services,Monthly Refuse & Recycling 1/12/16-31/12/16,
East Cambridgeshire District Council,20/01/2017,Veolia ES (UK) Ltd,1136231,"72,678.66",,Refuse Collection,Third Party,5010,Contracted Services,Monthly Refuse & Recycling 1/12/16-31/12/16,
East Cambridgeshire District Council,20/01/2017,Veolia ES (UK) Ltd,1136231,"41,105.09",,Weekly Collection Support Grant,Third Party,5010,Contracted Services,Monthly Refuse & Recycling 1/12/16-31/12/16,
East Cambridgeshire District Council,20/01/2017,Veolia ES (UK) Ltd,1136231,"45,162.31",,Street Cleansing,Third Party,5010,Contracted Services,Monthly Refuse & Recycling 1/12/16-31/12/16,
East Cambridgeshire District Council,03/01/2017,Breckland Council,1136083,"38,358.90",,Council Tax Collection Costs,Third Party,5020,ARP Services,Monthly Provision of Service 2016/17,
East Cambridgeshire District Council,03/01/2017,Breckland Council,1136083,"47,059.53",,Housing Benefits,Third Party,5020,ARP Services,Monthly Provision of Service 2016/17,
East Cambridgeshire District Council,03/01/2017,Breckland Council,1136083,"9,716.74",,NNDR Collection costs,Third Party,5020,ARP Services,Monthly Provision of Service 2016/17,
East Cambridgeshire District Council,03/01/2017,Breckland Council,1136083,"-1,016.11",,Anglia Revenue Partnerships (ARP),Third Party,5020,ARP Services,Monthly Provision of Service 2016/17,
East Cambridgeshire District Council,04/01/2017,Chaplin Farrant Limited,637669,"3,354.33",,Angel Drove Commuters Car Park,Capital Costs,C108,Supplies & Services,Angel Drove Ely,
East Cambridgeshire District Council,08/12/2016,Foresport Fencing Limited,637755,"30,441.00",,Leisure Facility,Capital Costs,C201,Payments To Contractors,Remaining Balance - Netted Ball Stop Fencing,
East Cambridgeshire District Council,26/01/2017,Pellikaan Holding (Belgie) NV,637865,"390,000.00",,Leisure Facility,Capital Costs,C201,Payments To Contractors,Ely Leisure Centre - 1st Valuation,
East Cambridgeshire District Council,06/01/2017,Turnstone Ely Limited,637709,"125,592.62",,Leisure Site - Infrastructure,Capital Costs,C301,Professional Fees,land at downham Rd,
East Cambridgeshire District Council,04/01/2017,Rossi Long Consulting Ltd,637721,"3,650.00",,Littleport Station Car Park,Capital Costs,C301,Professional Fees,Transport planning services,
East Cambridgeshire District Council,10/01/2017,Mace Limited,637748,"31,799.00",,Leisure Facility,Capital Costs,C301,Professional Fees,RIBA 5 - November 2016,
East Cambridgeshire District Council,19/01/2017,Mace Limited,637821,"26,799.00",,Leisure Facility,Capital Costs,C301,Professional Fees,RIBA 5 - December 2016,
East Cambridgeshire District Council,12/01/2017,Stannah Lift Services Ltd,1136153,"2,441.00",,Mandatory Disabled Fac.Grant,Capital Costs,C402,Home Imp.Grant 50% advance,Redacted Personal Data,
East Cambridgeshire District Council,12/01/2017,Trevor Benton Construction Ltd,1136182,"6,057.25",,Mandatory Disabled Fac.Grant,Capital Costs,C402,Home Imp.Grant 50% advance,Redacted Personal Data,
East Cambridgeshire District Council,12/01/2017,"Bob Smith Heating, Plumbing & Electrical Ltd",1136178,"4,749.72",,Mandatory Disabled Fac.Grant,Capital Costs,C404,Home Imp.Grant. Final payment,Redacted Personal Data,
East Cambridgeshire District Council,12/01/2017,Trevor Benton Construction Ltd,1136180,"4,236.00",,Mandatory Disabled Fac.Grant,Capital Costs,C404,Home Imp.Grant. Final payment,Redacted Personal Data,
East Cambridgeshire District Council,26/01/2017,Trevor Benton Construction Ltd,1136311,"4,589.74",,Mandatory Disabled Fac.Grant,Capital Costs,C404,Home Imp.Grant. Final payment,Redacted Personal Data,
East Cambridgeshire District Council,26/01/2017,Ashco Building & Maintenance Services Ltd,1136312,"3,461.15",,Mandatory Disabled Fac.Grant,Capital Costs,C404,Home Imp.Grant. Final payment,Redacted Personal Data,
East Cambridgeshire District Council,12/01/2017,CP Home Improvements,1136176,"1,333.60",,Home Repair Assistance,Capital Costs,C405,Home Repair Grants,Redacted Personal Data,
East Cambridgeshire District Council,19/01/2017,"Bob Smith Heating, Plumbing & Electrical Ltd",1136214,"3,000.00",,Home Repair Assistance,Capital Costs,C405,Home Repair Grants,Redacted Personal Data,
East Cambridgeshire District Council,18/01/2017,Ancestors of Dover Ltd,637810,809.05,,Cromwell House,Merchandising Stcok,P730,Purchase - Souvenirs & Gifts,,
,,,,"593,498.37",,,,,,,
